fUSD/lending_fUSD_20241027
["ID","MTS","AMOUNT","RATE_DAILY","PERIOD"]
[340884285,1730013045536,-151.0,0.00044038,14]
[340884286,1730013045548,-154.759877,0.00044038,14]
[340884287,1730013045560,-151.0,0.00044038,14]
[340884288,1730013045571,-151.0,0.00044038,14]
[340884289,1730013045582,-151.0,0.00044038,14]
[340884290,1730013045593,-151.0,0.00044038,14]
[340884291,1730013045605,-151.0,0.00044038,14]
[340884292,1730013045615,-151.0,0.00044038,14]
[340884293,1730013045626,-151.0,0.00044038,14]
[340884294,1730013045637,-151.0,0.00044038,14]
[340884295,1730013045648,-151.0,0.00044038,14]
[340884296,1730013045659,-151.0,0.00044038,14]
[340884297,1730013045670,-151.0,0.00044038,14]
[340884298,1730013045681,-151.0,0.00044038,14]
[340884299,1730013045693,-151.0,0.00044038,14]
[340884300,1730013045705,-151.0,0.00044038,14]
[340884301,1730013045716,-151.0,0.00044038,14]
[340884302,1730013045727,-151.0,0.00044038,14]
[340884303,1730013045738,-151.0,0.00044038,14]
[340884304,1730013045876,-153.281048,0.00044038,14]
[340884305,1730013045890,-151.0,0.00044038,14]
[340884306,1730013045901,-151.0,0.00044038,14]
[340884307,1730013045917,-151.0,0.00044038,14]
[340884308,1730013045926,-151.0,0.00044038,14]
[340884309,1730013045936,-167.369145,0.00044038,14]
[340884310,1730013045946,-151.0,0.00044038,14]
[340884312,1730013045956,-151.0,0.00044038,14]
[340884313,1730013045965,-151.0,0.00044038,14]
[340884315,1730013045975,-151.0,0.00044038,14]
[340884316,1730013045986,-339.158186,0.00044038,14]
[340884317,1730013045996,-339.158186,0.00044038,14]
[340884318,1730013046013,-339.158186,0.00044038,14]
[340884319,1730013046022,-339.158186,0.00044038,14]
[340884321,1730013046032,-339.158186,0.00044038,14]
[340884323,1730013046041,-339.158186,0.00044038,14]
[340884324,1730013046050,-339.158186,0.00044038,14]
[340884325,1730013046059,-339.158186,0.00044038,14]
[340884326,1730013046068,-151.0,0.00044038,14]
[340884327,1730013046078,-151.0,0.00044038,14]
[340884328,1730013046087,-151.0,0.00044038,14]
[340884329,1730013046096,-151.0,0.00044038,14]
[340884330,1730013046105,-350.239673,0.00044038,14]
[340884331,1730013046114,-350.239673,0.00044038,14]
[340884332,1730013046123,-350.239673,0.00044038,14]
[340884333,1730013046132,-350.239673,0.00044038,14]
[340884334,1730013046141,-350.239673,0.00044038,14]
[340884335,1730013046151,-350.239673,0.00044038,14]
[340884336,1730013046162,-350.239673,0.00044038,14]
[340884337,1730013046173,-350.239673,0.00044038,14]
[340884338,1730013046183,-151.0,0.00044038,14]
[340884339,1730013046192,-151.0,0.00044038,14]
[340884340,1730013046201,-151.0,0.00044038,14]
[340884341,1730013046211,-151.0,0.00044038,14]
[340884342,1730013046219,-151.0,0.00044038,14]
[340884343,1730013046228,-151.0,0.00044038,14]
[340884344,1730013046238,-151.0,0.00044038,14]
[340884345,1730013046248,-151.0,0.00044038,14]
[340884346,1730013046258,-151.0,0.00044038,14]
[340884347,1730013046267,-151.0,0.00044038,14]
[340884348,1730013046275,-227.022317,0.00044038,14]
[340884349,1730013046285,-151.0,0.00044038,14]
[340884350,1730013046294,-151.0,0.00044038,14]
[340884351,1730013046303,-151.0,0.00044038,14]
[340884352,1730013046312,-151.0,0.00044038,14]
[340884353,1730013046321,-293.379675,0.00044038,14]
[340884354,1730013046330,-293.379675,0.00044038,14]
[340884355,1730013046339,-151.0,0.00044038,14]
[340884356,1730013046348,-151.0,0.00044038,7]
[340884357,1730013046358,-151.0,0.00044038,14]
[340884358,1730013046367,-630.882651,0.00044038,14]
[340884359,1730013046377,-151.0,0.00044038,14]
[340884360,1730013046386,-151.0,0.00044038,14]
[340884361,1730013046395,-630.882651,0.00044038,14]
[340884362,1730013046404,-151.0,0.00044038,14]
[340884363,1730013046413,-151.0,0.00044038,14]
[340884364,1730013046425,-151.0,0.00044038,14]
[340884365,1730013046434,-151.0,0.00044038,14]
[340884366,1730013046443,-151.0,0.00044038,14]
[340884367,1730013046453,-151.0,0.00044038,14]
[340884368,1730013046463,-156.700425,0.00044038,14]
[340884369,1730013046472,-204.82143431,0.00044039,120]
[340884370,1730013046482,-151.0,0.00044039,7]
[340884371,1730013046491,-151.0,0.00044039,7]
[340884373,1730013046501,-151.0,0.00044039,7]
[340884375,1730013046510,-151.0,0.00044039,7]
[340884376,1730013046519,-151.0,0.00044039,7]
[340884377,1730013046529,-151.0,0.00044039,7]
[340884378,1730013046539,-151.0,0.00044039,7]
[340884379,1730013046550,-151.0,0.00044039,7]
[340884380,1730013046560,-207.21395133,0.00044039,7]
[340884381,1730013046570,-151.0,0.00044039,7]
[340884382,1730013046579,-151.0,0.00044039,7]
[340884383,1730013046589,-151.0,0.00044039,7]
[340884384,1730013046598,-151.0,0.00044039,7]
[340884385,1730013046607,-151.0,0.00044039,14]
[340884386,1730013046616,-253.501216,0.00044039,14]
[340884387,1730013046624,-151.0,0.00044039,14]
[340884388,1730013046633,-187.547985,0.00044039,14]
[340884389,1730013046643,-151.0,0.00044039,14]
[340884390,1730013046652,-151.0,0.00044039,14]
[340884391,1730013046660,-151.0,0.00044039,14]
[340884392,1730013046669,-151.0,0.00044039,14]
[340884393,1730013046679,-174.106432,0.00044039,14]
[340884394,1730013046688,-174.106432,0.00044039,14]
[340884395,1730013046697,-174.106432,0.00044039,14]
[340884396,1730013046706,-174.106432,0.00044039,14]
[340884397,1730013046714,-174.106432,0.00044039,14]
[340884398,1730013046723,-174.106432,0.00044039,14]
[340884399,1730013046732,-174.106432,0.00044039,14]
[340884400,1730013046741,-174.106432,0.00044039,14]
[340884401,1730013046751,-174.106432,0.00044039,14]
[340884402,1730013046760,-174.106432,0.00044039,14]
[340884403,1730013046769,-151.0,0.00044039,14]
[340884404,1730013046778,-151.0,0.00044039,14]
[340884405,1730013046787,-151.0,0.00044039,14]
[340884406,1730013046795,-151.0,0.00044039,14]
[340884407,1730013046804,-151.0,0.00044039,14]
[340884408,1730013046813,-151.0,0.00044039,14]
[340884409,1730013046822,-151.0,0.00044039,14]
[340884410,1730013046831,-151.0,0.00044039,14]
[340884411,1730013046840,-154.800051,0.00044039,14]
[340884412,1730013046849,-151.0,0.00044039,14]
[340884413,1730013046858,-339.158186,0.00044039,14]
[340884414,1730013046867,-339.158186,0.00044039,14]
[340884415,1730013046876,-164.356048,0.00044039,14]
[340884416,1730013046885,-350.239673,0.00044039,14]
[340884417,1730013046894,-350.239673,0.00044039,14]
[340884418,1730013046904,-151.0,0.00044039,14]
[340884419,1730013046913,-186.420995,0.00044039,14]
[340884420,1730013046923,-6570.07,0.00044039,5]
[340884421,1730013046934,-500.0,0.00044039,5]
[340884422,1730013046946,-2745.27,0.00044039,5]
[340884423,1730013046955,-1507.17,0.00044039,5]
[340884424,1730013046965,-199.52779656,0.00044039,30]
[340884425,1730013046977,-151.0,0.0004404,14]
[340884426,1730013046988,-500.0,0.0004404,5]
[340884427,1730013046998,-500.0,0.0004404,5]
[340884428,1730013047007,-500.0,0.0004404,5]
[340884429,1730013047016,-503.66960825,0.0004404,5]
[340884430,1730013047026,-500.0,0.0004404,5]
[340884431,1730013047035,-548.44297216,0.0004404,5]
[340884432,1730013047043,-151.0,0.0004404,14]
[340884433,1730013047053,-151.0,0.0004404,14]
[340884434,1730013047062,-151.0,0.0004404,14]
[340884435,1730013047071,-289.235832,0.0004404,14]
[340884436,1730013047081,-500.0,0.0004404,5]
[340884437,1730013047090,-500.0,0.0004404,5]
[340884438,1730013047099,-500.0,0.0004404,5]
[340884439,1730013047108,-500.0,0.0004404,5]
[340884440,1730013047119,-500.0,0.0004404,5]
[340884441,1730013047129,-500.0,0.0004404,5]
[340884442,1730013047140,-500.0,0.0004404,5]
[340884443,1730013047150,-500.0,0.0004404,5]
[340884444,1730013047161,-151.0,0.0004404,14]
[340884445,1730013047170,-155.27684413,0.0004404,5]
[340884446,1730013047179,-151.0,0.0004404,14]
[340884447,1730013047188,-151.0,0.0004404,14]
[340884448,1730013047198,-151.0,0.0004404,14]
[340884449,1730013047207,-151.0,0.0004404,14]
[340884450,1730013047216,-151.0,0.0004404,14]
[340884451,1730013047225,-182.270823,0.0004404,14]
[340884452,1730013047235,-151.0,0.0004404,14]
[340884453,1730013047244,-293.379675,0.0004404,14]
[340884454,1730013047254,-293.379675,0.0004404,14]
[340884455,1730013047264,-293.379675,0.0004404,14]
[340884456,1730013047273,-293.379675,0.0004404,14]
[340884457,1730013047282,-293.379675,0.0004404,14]
[340884458,1730013047291,-293.379675,0.0004404,14]
[340884459,1730013047300,-293.379675,0.0004404,14]
[340884460,1730013047310,-293.379675,0.0004404,14]
[340884461,1730013047319,-151.0,0.0004404,14]
[340884462,1730013047328,-151.0,0.0004404,14]
[340884463,1730013047338,-151.0,0.0004404,14]
[340884464,1730013047346,-711.17,0.0004404,5]
[340884465,1730013047356,-711.17,0.0004404,5]
[340884466,1730013047365,-711.17,0.0004404,5]
[340884467,1730013047374,-711.17,0.0004404,5]
[340884468,1730013047383,-711.17,0.0004404,5]
[340884469,1730013047393,-711.17,0.0004404,5]
[340884470,1730013047404,-711.17,0.0004404,5]
[340884471,1730013047413,-711.17,0.0004404,5]
[340884472,1730013047423,-711.17,0.0004404,5]
[340884473,1730013047432,-711.17,0.0004404,5]
[340884474,1730013047442,-711.17,0.0004404,5]
[340884475,1730013047453,-711.17,0.0004404,5]
[340884476,1730013047463,-711.17,0.0004404,5]
[340884477,1730013047473,-711.17,0.0004404,5]
[340884478,1730013047483,-711.17,0.0004404,5]
[340884479,1730013047493,-711.17,0.0004404,5]
[340884480,1730013047502,-711.17,0.0004404,5]
[340884481,1730013047511,-711.17,0.0004404,5]
[340884482,1730013047520,-711.17,0.0004404,5]
[340884483,1730013047529,-711.17,0.0004404,5]
[340884484,1730013047539,-711.17,0.0004404,5]
[340884485,1730013047548,-711.38163663,0.0004404,5]
[340884486,1730013047557,-6570.07,0.0004404,5]
[340884487,1730013047569,-6570.07,0.0004404,5]
[340884488,1730013047580,-6570.07,0.0004404,5]
[340884489,1730013047590,-6570.07,0.0004404,5]
[340884490,1730013047601,-6570.07,0.0004404,5]
[340884491,1730013047611,-6570.07,0.0004404,5]
[340884492,1730013047620,-6570.07,0.0004404,5]
[340884493,1730013047630,-6570.07,0.0004404,5]
[340884494,1730013047640,-6570.07,0.0004404,5]
[340884495,1730013047650,-6570.07,0.0004404,5]
[340884496,1730013047661,-6570.07,0.0004404,5]
[340884497,1730013047671,-6570.07,0.0004404,5]
[340884498,1730013047680,-6570.07,0.0004404,5]
[340884499,1730013047690,-6570.07,0.0004404,5]
[340884500,1730013047699,-6570.07,0.0004404,5]
[340884501,1730013047709,-6570.07,0.0004404,5]
[340884502,1730013047718,-6570.07,0.0004404,5]
[340884503,1730013047727,-6570.07,0.0004404,5]
[340884504,1730013047736,-6570.07,0.0004404,5]
[340884505,1730013047746,-6570.07,0.0004404,5]
[340884506,1730013047755,-6570.07,0.0004404,5]
[340884507,1730013047764,-6570.12706463,0.0004404,5]
[340884508,1730013047773,-500.0,0.0004404,5]
[340884509,1730013047782,-161.95359285,0.0004404,5]
[340884510,1730013047792,-2745.27,0.0004404,5]
[340884511,1730013047802,-2745.27,0.0004404,5]
[340884512,1730013047811,-2745.27,0.0004404,5]
[340884513,1730013047820,-2745.27,0.0004404,5]
[340884514,1730013047830,-2745.27,0.0004404,5]
[340884515,1730013047839,-2745.27,0.0004404,5]
[340884516,1730013047848,-2745.27,0.0004404,5]
[340884517,1730013047857,-2745.27,0.0004404,5]
[340884518,1730013047867,-2745.27,0.0004404,5]
[340884519,1730013047876,-2745.27,0.0004404,5]
[340884520,1730013047886,-151.0,0.0004404,14]
[340884521,1730013047896,-2745.27,0.0004404,5]
[340884522,1730013047905,-151.0,0.0004404,14]
[340884523,1730013047914,-2745.27,0.0004404,5]
[340884524,1730013047924,-151.0,0.0004404,14]
[340884525,1730013047932,-2745.27,0.0004404,5]
[340884526,1730013047941,-2745.27,0.0004404,5]
[340884527,1730013047950,-151.0,0.0004404,14]
[340884528,1730013047960,-2745.27,0.0004404,5]
[340884529,1730013047969,-2745.27,0.0004404,5]
[340884530,1730013047981,-2745.27,0.0004404,5]
[340884531,1730013047991,-2745.27,0.0004404,5]
[340884532,1730013048001,-2745.27,0.0004404,5]
[340884533,1730013048010,-2745.27,0.0004404,5]
[340884534,1730013048019,-2745.27,0.0004404,5]
[340884535,1730013048028,-2745.34043598,0.0004404,5]
[340884536,1730013048037,-500.0,0.0004404,5]
[340884537,1730013048047,-500.0,0.0004404,5]
[340884538,1730013048055,-338.22448728,0.0004404,5]
[340884539,1730013048065,-630.882651,0.0004404,14]
[340884540,1730013048075,-630.882651,0.0004404,14]
[340884541,1730013048084,-630.882651,0.0004404,14]
[340884542,1730013048094,-630.882651,0.0004404,14]
[340884543,1730013048103,-151.0,0.0004404,14]
[340884544,1730013048111,-151.0,0.0004404,14]
[340884545,1730013048121,-151.0,0.0004404,14]
[340884546,1730013048130,-151.0,0.0004404,14]
[340884547,1730013048139,-151.0,0.0004404,14]
[340884548,1730013048148,-151.0,0.0004404,14]
[340884549,1730013048157,-151.0,0.0004404,14]
[340884550,1730013048166,-151.0,0.0004404,14]
[340884551,1730013048175,-630.882651,0.0004404,14]
[340884552,1730013048184,-630.882651,0.0004404,14]
[340884553,1730013048194,-630.882651,0.0004404,14]
[340884554,1730013048203,-630.882651,0.0004404,14]
[340884555,1730013048212,-151.0,0.0004404,14]
[340884556,1730013048221,-247.125068,0.0004404,14]
[340884557,1730013048231,-151.0,0.0004404,14]
[340884558,1730013048240,-151.0,0.0004404,14]
[340884559,1730013048250,-151.0,0.0004404,14]
[340884560,1730013048259,-151.0,0.0004404,14]
[340884561,1730013048269,-151.0,0.0004404,14]
[340884562,1730013048278,-151.0,0.0004404,14]
[340884563,1730013048287,-151.0,0.0004404,14]
[340884564,1730013048296,-151.0,0.0004404,14]
[340884565,1730013048306,-151.0,0.0004404,14]
[340884566,1730013048315,-151.0,0.0004404,14]
[340884567,1730013048325,-1507.17,0.0004404,5]
[340884568,1730013048335,-1507.17,0.0004404,5]
[340884569,1730013048344,-235.784661,0.0004404,14]
[340884570,1730013048354,-1507.17,0.0004404,5]
[340884571,1730013048363,-1507.17,0.0004404,5]
[340884572,1730013048451,-1507.17,0.0004404,5]
[340884573,1730013048473,-1507.17,0.0004404,5]
[340884574,1730013048482,-1507.17,0.0004404,5]
[340884575,1730013048492,-1507.17,0.0004404,5]
[340884576,1730013048502,-1507.17,0.0004404,5]
[340884577,1730013048511,-1507.17,0.0004404,5]
[340884578,1730013048521,-1507.17,0.0004404,5]
[340884579,1730013048531,-1507.17,0.0004404,5]
[340884580,1730013048540,-1507.17,0.0004404,5]
[340884581,1730013048549,-1507.17,0.0004404,5]
[340884582,1730013048559,-1507.17,0.0004404,5]
[340884583,1730013048568,-1507.17,0.0004404,5]
[340884584,1730013048578,-1507.17,0.0004404,5]
[340884585,1730013048587,-1507.17,0.0004404,5]
[340884586,1730013048596,-1507.17,0.0004404,5]
[340884587,1730013048606,-1507.17,0.0004404,5]
[340884588,1730013048615,-1507.17,0.0004404,5]
[340884589,1730013048624,-1507.17604678,0.0004404,5]
[340884590,1730013048633,-151.0,0.0004404,14]
[340884591,1730013048643,-151.0,0.0004404,14]
[340884592,1730013048652,-151.0,0.0004404,14]
[340884593,1730013048661,-151.0,0.0004404,14]
[340884594,1730013048670,-500.0,0.0004404,2]
[340884595,1730013048679,-157.0845624,0.0004404,14]
[340884596,1730013048688,-536.95135638,0.0004404,5]
[340884597,1730013048698,-215.40846812,0.00044041,30]
[340884598,1730013048707,-150.0,0.00044041,7]
[340884599,1730013048716,-151.0,0.00044041,14]
[340884600,1730013048725,-151.0,0.00044041,14]
[340884601,1730013048735,-267.298432,0.00044041,14]
[340884602,1730013048744,-155.979711,0.00044041,14]
[340884603,1730013048753,-151.0,0.00044041,14]
[340884604,1730013048762,-151.0,0.00044041,14]
[340884605,1730013048771,-154.870886,0.00044041,14]
[340884606,1730013048781,-151.0,0.00044041,14]
[340884607,1730013048790,-151.0,0.00044041,14]
[340884608,1730013048799,-151.0,0.00044041,14]
[340884609,1730013048808,-172.05989752,0.00044041,14]
[340884610,1730013048817,-339.158186,0.00044041,14]
[340884611,1730013048827,-339.158186,0.00044041,14]
[340884612,1730013048836,-339.158186,0.00044041,14]
[340884613,1730013048845,-339.158186,0.00044041,14]
[340884614,1730013048855,-339.158186,0.00044041,14]
[340884615,1730013048863,-339.158186,0.00044041,14]
[340884616,1730013048873,-339.158186,0.00044041,14]
[340884617,1730013048882,-339.158186,0.00044041,14]
[340884618,1730013048891,-339.158186,0.00044041,14]
[340884619,1730013048900,-339.158194,0.00044041,14]
[340884620,1730013048909,-350.239673,0.00044041,14]
[340884621,1730013048919,-350.239673,0.00044041,14]
[340884622,1730013048930,-350.239673,0.00044041,14]
[340884623,1730013048939,-350.239673,0.00044041,14]
[340884624,1730013048948,-350.239673,0.00044041,14]
[340884625,1730013048958,-350.239673,0.00044041,14]
[340884626,1730013048967,-350.239673,0.00044041,14]
[340884627,1730013048977,-350.239673,0.00044041,14]
[340884628,1730013048989,-350.239673,0.00044041,14]
[340884629,1730013048998,-350.239681,0.00044041,14]
[340884630,1730013049007,-151.0,0.00044041,14]
[340884631,1730013049016,-151.0,0.00044041,14]
[340884632,1730013049027,-151.0,0.00044041,14]
[340884633,1730013049036,-276.059967,0.00044041,14]
[340884634,1730013049045,-151.0,0.00044041,14]
[340884635,1730013049054,-151.0,0.00044041,14]
[340884636,1730013049065,-151.0,0.00044041,14]
[340884637,1730013049074,-293.379675,0.00044041,14]
[340884638,1730013049083,-293.379675,0.00044041,14]
[340884639,1730013049092,-293.379675,0.00044041,14]
[340884640,1730013049101,-293.379675,0.00044041,14]
[340884641,1730013049111,-293.379675,0.00044041,14]
[340884642,1730013049120,-293.379675,0.00044041,14]
[340884643,1730013049130,-293.379675,0.00044041,14]
[340884644,1730013049139,-293.379678,0.00044041,14]
[340884645,1730013049148,-232.300667,0.00044041,14]
[340884646,1730013049158,-630.882651,0.00044041,14]
[340884647,1730013049167,-151.0,0.00044041,14]
[340884648,1730013049176,-630.882651,0.00044041,14]
[340884649,1730013049185,-151.0,0.00044041,14]
[340884650,1730013049194,-151.0,0.00044041,14]
[340884651,1730013049204,-151.0,0.00044041,14]
[340884652,1730013049213,-151.0,0.00044041,14]
[340884653,1730013049222,-151.0,0.00044041,14]
[340884654,1730013049231,-151.0,0.00044041,14]
[340884655,1730013049240,-151.0,0.00044041,14]
[340884656,1730013049250,-151.0,0.00044041,14]
[340884657,1730013049259,-151.0,0.00044044,7]
[340884658,1730013049269,-151.0,0.00044044,7]
[340884659,1730013049278,-151.906891,0.00044044,14]
[340884660,1730013049287,-174.106432,0.00044044,14]
[340884661,1730013049297,-174.106432,0.00044044,14]
[340884662,1730013049306,-287.44972,0.00044044,14]
[340884663,1730013049315,-150.0,0.00044049,14]
[340884664,1730013049324,-8087.89889632,0.0004405,10]
[340884665,1730013049334,-1224.37053436,0.0004405,10]
[340884666,1730013049343,-319.0,0.00044057,10]
[340884667,1730013049352,-8087.89889632,0.0004406,10]
[340884668,1730013049361,-151.0,0.00044073,7]
[340884669,1730013049371,-151.0,0.0004408,7]
[340884670,1730013049380,-1635.23,0.000441,60]
[340884671,1730013049390,-1565.36,0.000441,30]
[340884672,1730013049400,-368.21,0.000441,120]
[340884673,1730013049409,-1001.28,0.000441,74]
[340884674,1730013049419,-3659140.04971795,0.00044105,20]
[340884675,1730013049498,-500.0,0.00044028,120]
[340884676,1730013049507,-75326.14507309,0.00044105,20]
[340884677,1730013049558,-500.0,0.00044028,120]
[340884678,1730013049568,-500.0,0.00044028,120]
[340884679,1730013049577,-500.0,0.00044028,120]
[340884680,1730013049586,-500.0,0.00044028,120]
[340884681,1730013049595,-500.0,0.00044028,120]
[340884682,1730013049605,-500.0,0.00044028,120]
[340884683,1730013049615,-500.0,0.00044028,120]
[340884684,1730013049624,-500.0,0.00044028,120]
[340884685,1730013049635,-500.0,0.00044028,120]
[340884686,1730013049644,-33.73583046,0.00044105,20]
[340884687,1730013049656,-8455.01535632,0.00044105,20]
[340884688,1730013403654,-150.0,0.00017316,2]
[340884689,1730013426232,150.0,0.00017429,2]
[340884690,1730013442091,403.69045787,0.00017316,2]
[340884691,1730013468132,150.0,0.00017433,2]
[340884692,1730013509704,150.0,0.00017433,2]
[340884693,1730013551316,150.0,0.00017433,2]
[340884694,1730013593050,150.0,0.00017433,2]
[340884695,1730013635261,150.0,0.00017433,2]
[340884696,1730013663085,300.0,0.00019725,2]
[340884697,1730013677360,150.0,0.00017433,2]
[340884698,1730013718956,239.88622173,0.00017433,2]
[340884699,1730013790924,-155.66,0.00015342,2]
[340884700,1730013874534,1009.35609448,0.00044107,30]
[340884701,1730013908737,9844.34,0.00015,2]
[340884702,1730013908785,4591726.93522826,0.00015,2]
[340884703,1730013957362,268.6720961,0.00014,2]
[340884704,1730013982804,-202.0,0.000186,2]
[340884707,1730014107394,-150.0,0.00017433,2]
[340884708,1730014124023,2430.0,0.000145,2]
[340884747,1730014232319,-1389.74082867,0.00021,2]
[340884749,1730014232329,-277.03707118,0.00022,12]
[340884751,1730014232338,-155.66,0.0003272,2]
[340884753,1730014232347,-152.0,0.00038115,3]
[340884759,1730014232460,-172.15312536,0.0004,120]
[340884760,1730014232474,-328.53405173,0.0004,120]
[340884761,1730014232484,-532.78,0.00040809,2]
[340884762,1730014232493,-851.08492306,0.00041,2]
[340884763,1730014232504,-2055.30846553,0.00041,2]
[340884764,1730014232515,-798.99431367,0.00041,2]
[340884765,1730014232526,-11061.39771003,0.00041,2]
[340884766,1730014232536,-664.4873889,0.00041,2]
[340884767,1730014232547,-93.86892001,0.00041,2]
[340884768,1730014232556,-272.90643067,0.00041451,60]
[340884769,1730014232565,-1837.92907306,0.00041451,2]
[340884770,1730014232576,-893.6602403,0.00041451,2]
[340884771,1730014232586,-661.82674922,0.00041451,2]
[340884772,1730014232597,-535.00166787,0.00041451,2]
[340884773,1730014232608,-999.915646,0.00041451,2]
[340884774,1730014232619,-419.16662355,0.00041451,2]
[340884775,1730014232628,-1000.0,0.000416,7]
[340884776,1730014232637,-567.98,0.00041972,120]
[340884778,1730014232646,-165.35,0.00042097,2]
[340884780,1730014232655,-154.51,0.00042364,2]
[340884782,1730014232664,-184.91,0.00042408,2]
[340884784,1730014232674,-565.3,0.00042408,2]
[340884786,1730014232683,-331.52101195,0.00042488,2]
[340884788,1730014232694,-1096.40924013,0.00042488,2]
[340884790,1730014232705,-1092.98974792,0.00042488,2]
[340884792,1730014232714,-200.0,0.00042514,2]
[340884794,1730014232725,-500.0,0.0004252,2]
[340884796,1730014232734,-206.8866616,0.00042526,2]
[340884841,1730014234817,250.0,0.00015,2]
[340884842,1730014236878,-300.0,0.00017,2]
[340884843,1730014237640,784.71890074,0.00044107,30]
[340884844,1730014238410,-350.0,0.00019,2]
[340884845,1730014238419,-400.0,0.00021,2]
[340884846,1730014238429,-43.1133384,0.00042526,2]
[340884847,1730014238439,-250.0,0.0004253,2]
[340884848,1730014238448,-326.86,0.00042542,2]
[340884849,1730014238459,-272.72,0.00042547,2]
[340884850,1730014238469,-503.8,0.00042563,30]
[340884851,1730014238478,-724.97,0.00042563,30]
[340884852,1730014238487,-1200.0,0.00042572,4]
[340884853,1730014238497,-674.0,0.00042572,4]
[340884854,1730014238506,-23900.0,0.00042573,2]
[340884855,1730014238516,-150.0,0.00042585,7]
[340884856,1730014238524,-250.0,0.00042586,120]
[340884857,1730014238534,-284.57,0.00042748,2]
[340884858,1730014238543,-303.7306,0.00042766,2]
[340884859,1730014238552,-2647.81,0.00042828,2]
[340884860,1730014238561,-691.59,0.00042866,2]
[340884861,1730014238570,-318.441,0.000429,2]
[340884862,1730014238579,-318.441,0.000429,2]
[340884863,1730014238589,-318.441,0.000429,2]
[340884864,1730014238598,-318.441,0.000429,2]
[340884865,1730014238607,-318.441,0.000429,2]
[340884866,1730014238616,-318.441,0.000429,2]
[340884867,1730014238626,-318.441,0.000429,2]
[340884868,1730014238635,-318.441,0.000429,2]
[340884869,1730014238647,-318.441,0.000429,2]
[340884870,1730014238656,-318.441,0.000429,2]
[340884871,1730014238666,-1000.0,0.00042973,2]
[340884872,1730014238676,-905.779,0.00042984,66]
[340884873,1730014238686,-152.0,0.00043044,4]
[340884874,1730014238695,-532.78,0.00043073,2]
[340884875,1730014238704,-155.72,0.00043102,2]
[340884876,1730014238714,-13553.0,0.00043304,2]
[340884877,1730014238722,-1185.296,0.00043304,2]
[340884878,1730014238732,-1247.0,0.00043304,2]
[340884879,1730014238742,-454.845,0.00043304,2]
[340884880,1730014238751,-813.0,0.00043304,2]
[340884881,1730014238761,-298.27,0.00043304,2]
[340884882,1730014238770,-569.357,0.00043304,2]
[340884883,1730014238780,-5900.609,0.00043304,2]
[340884884,1730014238790,-153.174,0.00043304,2]
[340884885,1730014238800,-1085.0,0.00043304,2]
[340884886,1730014238809,-193.998,0.00043304,2]
[340884887,1730014238818,-556.0,0.00043304,2]
[340884888,1730014238828,-1393.688,0.00043304,2]
[340884889,1730014238837,-3362.0,0.00043304,2]
[340884890,1730014238847,-1912.0,0.00043304,2]
[340884891,1730014238856,-810.0,0.00043304,2]
[340884892,1730014238865,-503.8,0.00043831,30]